bitfinex/quotes_ETHUSD_20251117
["timestamp","ask_amount","ask_price","bid_price","bid_amount"]
[1763358690940,0.4892,3194.8,3194.3,3.14329445]
[1763358691344,0.4581,3194.4,3194.3,3.14329445]
[1763358691743,0.9473,3194.4,3194.3,3.14329445]
[1763358691951,0.9473,3194.4,3194.1,3.14329445]
[1763358692115,0.4892,3194.3,3194.1,3.14329445]
[1763358692316,0.4581,3194.2,3194.1,3.14329445]
[1763358693818,0.1941,3194.9,3194.1,3.14329445]
[1763358694019,0.4892,3194.5,3194.1,3.14329445]
[1763358694951,0.4892,3194.5,3193.8,4.27626263]
[1763358698965,0.1941,3194.9,3194.3,1.1337408]
[1763358699257,0.4892,3194.8,3194.3,1.1337408]
[1763358699624,0.4581,3194.4,3194.3,1.1337408]
[1763358700056,0.4892,3194.7,3194.3,1.1337408]
[1763358700422,0.1941,3194.9,3194.3,1.1337408]
[1763358700933,0.4581,3194.4,3193.9,1.1337408]
[1763358701137,0.4581,3194.3,3193.9,1.1337408]
[1763358702164,0.9473,3194.3,3193.9,1.1337408]
[1763358702366,0.9473,3194.3,3193.8,4.32626263]
[1763358702367,0.9473,3194.3,3193.8,4.27626263]
[1763358702569,0.4581,3193.9,3193.8,0.001]
[1763358702731,0.4892,3194.2,3193.8,0.001]
[1763358704273,0.4581,3193.9,3193.8,0.001]
[1763358704637,0.9473,3193.9,3193.4,0.001]
[1763358704837,0.4581,3193.5,3193.4,0.001]
[1763358705271,0.9473,3193.5,3193.4,0.001]
[1763358714199,0.4581,3193.5,3193.4,0.001]
[1763358714395,0.957,3193.5,3193.4,0.001]
[1763358717794,0.5009,3193.8,3193.4,0.001]
[1763358718396,0.4831,3193.5,3193.4,0.001]
[1763358718613,0.4831,3193.5,3193.1,0.005]
[1763358718785,0.982,3193.5,3193.1,0.005]
[1763358719587,0.4989,3193.4,3193.1,0.005]
[1763358720221,0.4831,3193.2,3193.1,0.005]
[1763358720402,0.982,3193.2,3193.1,0.005]
[1763358720596,0.4989,3193.2,3193.1,0.005]
[1763358720801,0.982,3193.2,3193.1,0.005]
[1763358721579,0.4989,3193.4,3193.1,0.005]
[1763358721806,0.4989,3193.7,3193.1,0.005]
[1763358722801,0.002,3193.8,3193.1,0.005]
[1763358723007,0.4989,3193.7,3193.1,0.005]
[1763358723320,0.002,3193.8,3193.1,0.005]
[1763358724422,0.002,3193.8,3193.1,0.410504]
[1763358724620,0.002,3193.8,3193.1,0.411504]
[1763358725011,0.002,3193.8,3193.1,0.410504]
[1763358725738,0.5009,3193.8,3193.1,0.005]
[1763358729942,0.4831,3193.2,3193.1,0.005]
[1763358730334,0.982,3193.2,3193.1,0.005]
[1763358732639,0.982,3193.1,3192.7,0.001]
[1763358732828,0.6385,3192.8,3192.7,0.001]
[1763358733360,1.1374,3192.8,3192.7,0.001]
[1763358733735,1.4300588,3192.8,3192.7,0.001]
[1763358734055,1.70600876,3192.8,3192.7,0.001]
[1763358735327,1.41334996,3192.8,3192.7,0.001]
[1763358735543,1.1374,3192.8,3192.7,0.001]
[1763358743052,0.6385,3192.8,3192.7,0.001]
[1763358743258,0.1957,3193.0,3192.7,0.001]
[1763358743460,0.4695,3192.8,3192.7,0.001]
[1763358743757,0.9497,3192.8,3192.7,0.001]
[1763358747402,0.9497,3192.8,3192.6,0.001]
[1763358747619,0.9497,3192.7,3192.6,0.001]
[1763358747825,1.11262599,3192.7,3192.6,0.001]
[1763358750183,1.80946986,3192.7,3192.6,0.001]
[1763358750419,6.24621066,3192.7,3192.4,0.001]
[1763358750610,4.96862881,3192.5,3192.4,0.001]
[1763358750919,6.39370948,3192.5,3192.4,0.001]
[1763358751222,11.21089303,3192.5,3192.4,0.001]
[1763358751517,0.405504,3192.2,3192.1,0.005]
[1763358751713,9.69670948,3192.2,3191.3,0.001]
[1763358751880,0.4695,3191.4,3191.3,0.001]
[1763358752082,0.9497,3191.4,3191.3,0.001]
[1763358753417,1.355204,3191.4,3191.3,0.001]
[1763358754418,2.77982026,3191.4,3191.3,0.001]
[1763358754605,3.46716477,3191.4,3191.3,0.001]
[1763358757027,3.59282547,3191.4,3191.3,0.001]
[1763358757802,4.08487955,3191.4,3191.3,0.001]
[1763358760230,2.26379424,3191.4,3191.3,0.001]
[1763358761406,1.85829024,3191.4,3191.3,0.001]
[1763358761610,1.44175408,3191.4,3191.3,0.001]
[1763358763332,0.96155408,3191.4,3191.3,0.001]
[1763358764036,1.44175408,3191.4,3191.3,0.001]
[1763358769425,0.96155408,3191.4,3191.3,0.001]
[1763358770439,1.44175408,3191.4,3191.3,0.001]
[1763358772340,1.73318147,3191.4,3191.3,0.001]
[1763358772540,1.90649962,3191.4,3191.3,0.001]
[1763358772940,1.13487223,3191.4,3191.3,0.001]
[1763358773140,1.61257223,3191.4,3191.3,0.001]
[1763358773313,1.90399324,3191.4,3191.3,0.001]
[1763358774240,1.42629324,3191.4,3191.3,0.001]
[1763358774905,1.90399324,3191.4,3191.3,0.001]
[1763358778125,9.74531802,3191.4,3191.3,0.001]
[1763358778327,10.41895337,3191.4,3191.3,0.001]
[1763358779347,7.26791338,3191.4,3191.3,0.001]
[1763358780433,8.10672813,3191.4,3191.3,0.001]
[1763358780634,8.10851382,3191.4,3191.3,0.001]
[1763358781420,7.26969907,3191.4,3191.3,0.001]
[1763358785161,7.27011467,3191.4,3191.3,0.001]
[1763358785362,4.11907468,3191.4,3191.3,0.001]
[1763358785562,3.71357068,3191.4,3191.3,0.001]
[1763358786343,4.5591012,3191.4,3191.3,0.001]
[1763358787741,4.0814012,3191.4,3191.3,0.001]
[1763358788064,3.26607068,3191.4,3191.3,0.001]
[1763358788568,3.74377068,3191.4,3191.3,0.001]
[1763358789863,3.26607068,3191.4,3191.3,0.001]
[1763358790036,2.76637068,3191.4,3191.3,0.001]
[1763358791278,3.74377068,3191.4,3191.3,0.001]
[1763358791485,4.9948052,3191.4,3191.3,0.001]
[1763358793785,3.6119012,3191.4,3191.3,0.001]
[1763358793988,3.74377068,3191.4,3191.3,0.001]
[1763358796180,4.5893012,3191.4,3191.3,0.001]
[1763358796486,4.9948052,3191.4,3191.3,0.001]
[1763358797068,4.14927468,3191.4,3191.3,0.001]
[1763358798188,2.76637068,3191.4,3191.3,0.001]
[1763358798992,3.68287068,3191.4,3191.3,0.001]
[1763358801094,3.22227068,3191.4,3191.3,0.001]
[1763358801470,3.22227068,3191.4,3191.3,3.16003999]
[1763358801471,2.76637068,3191.4,3191.3,3.16003999]
[1763358801795,2.59305253,3191.4,3191.3,3.16003999]
[1763358801961,2.59305253,3191.4,3191.3,0.009]
[1763358802361,2.59305253,3191.4,3191.3,0.001]
[1763358802793,3.06925253,3191.4,3191.3,0.001]
[1763358803094,3.86777778,3191.4,3191.3,0.001]
[1763358805804,4.27328178,3191.4,3191.3,0.001]
[1763358806198,7.42432177,3191.4,3191.3,0.001]
[1763358806407,8.26985229,3191.4,3191.3,0.001]
[1763358806805,7.42432177,3191.4,3191.3,0.001]
[1763358810912,4.27328178,3191.4,3191.3,0.001]
[1763358814882,4.62839348,3191.4,3191.3,0.001]
[1763358815206,5.11999348,3191.4,3191.3,0.001]
[1763358815722,4.62839348,3191.4,3191.3,0.001]
[1763358815919,4.15219348,3191.4,3191.3,0.001]
[1763358818400,2.89997778,3191.4,3191.3,0.009]
[1763358820120,2.89997778,3191.4,3191.3,0.001]
[1763358820319,3.37617778,3191.4,3191.3,0.001]
[1763358820526,4.22288948,3191.4,3191.3,0.001]
[1763358822648,3.74668948,3191.4,3191.3,0.001]
[1763358824225,3.74668948,3191.4,3191.3,0.017]
[1763358824226,1.76623698,3191.4,3191.3,0.017]
[1763358824418,0.78567638,3191.4,3191.3,0.009]
[1763358824623,0.78567638,3191.4,3191.3,0.001]
[1763358825044,0.78567638,3191.4,3191.3,0.009]
[1763358825243,1.04639403,3191.4,3191.3,0.001]
[1763358826610,1.05639403,3191.4,3191.3,0.001]
[1763358827347,1.05639403,3191.4,3191.3,0.009]
[1763358829427,0.79567638,3191.4,3191.3,0.009]
[1763358834962,0.79567638,3191.4,3191.3,0.017]
[1763358835926,0.79567638,3191.4,3191.3,0.009]
[1763358836359,0.79567638,3191.4,3191.3,0.017]
[1763358836863,0.79567638,3191.4,3191.3,0.009]
[1763358837431,0.79567638,3191.4,3191.3,0.017]
[1763358838252,0.79567638,3191.4,3191.3,0.009]
[1763358838453,0.79567638,3191.4,3191.3,0.017]
[1763358838771,0.79567638,3191.4,3191.3,0.009]
[1763358839443,0.3036223,3191.4,3191.3,0.009]
[1763358840233,0.7997223,3191.4,3191.3,0.001]
[1763358840434,3.55162034,3191.4,3191.3,0.001]
[1763358840774,3.55188861,3191.4,3191.3,0.001]
[1763358842289,3.95739261,3191.4,3191.3,0.001]
[1763358844161,3.55188861,3191.4,3191.3,0.001]
[1763358849086,3.05518861,3191.4,3191.3,0.001]
[1763358849377,1.42534781,3191.4,3191.3,0.001]
[1763358849964,0.74823421,3191.4,3191.3,0.001]
[1763358851684,2.87477501,3191.4,3191.3,0.001]
[1763358851983,3.55188861,3191.4,3191.3,0.001]
[1763358858409,2.41833722,3191.4,3191.3,0.001]
[1763358858583,3.55207802,3191.4,3191.3,0.001]
[1763358862178,2.55927802,3191.4,3191.3,0.001]
[1763358862497,3.02167802,3191.4,3191.3,0.001]
[1763358862707,3.52027802,3191.4,3191.3,0.001]
[1763358863511,3.02167802,3191.4,3191.3,0.001]
[1763358863698,3.52027802,3191.4,3191.3,0.001]
[1763358868521,2.55927802,3191.4,3191.3,0.001]
[1763358869236,3.02167802,3191.4,3191.3,0.001]
[1763358869745,3.52027802,3191.4,3191.3,0.001]
[1763358871935,3.02167802,3191.4,3191.3,0.001]
[1763358872629,2.55927802,3191.4,3191.3,0.001]
[1763358877435,3.02167802,3191.4,3191.3,0.001]
[1763358877637,3.52027802,3191.4,3191.3,0.001]
[1763358878211,2.11493438,3191.4,3191.3,0.009]
[1763358878820,0.98119358,3191.4,3191.3,0.009]
[1763358879028,0.30407998,3191.4,3191.3,0.009]
[1763358880129,0.30407998,3191.4,3191.3,0.017]
[1763358880333,0.30407998,3191.4,3191.3,0.009]
[1763358881459,0.30407998,3191.4,3191.3,0.017]
[1763358883230,0.30417848,3191.4,3191.3,0.017]
[1763358884520,0.30417848,3191.4,3191.3,0.009]
[1763358895270,0.30417848,3191.4,3191.3,0.017]
[1763358895767,0.30417848,3191.4,3191.3,0.009]
[1763358898636,0.30417848,3191.4,3191.3,0.017]
[1763358898836,0.30417848,3191.4,3191.3,0.009]
[1763358900181,0.30417848,3191.4,3191.3,0.001]
[1763358901473,0.30417848,3191.4,3191.3,0.009]
[1763358903990,0.30417848,3191.4,3191.3,3.16024138]
[1763358904280,0.01,3191.4,3191.3,6.31948276]
[1763358904648,0.01,3191.4,3191.3,6.99709142]
[1763358908868,0.01,3191.8,3191.3,6.99709142]
[1763358909082,0.002,3192.1,3191.7,3.15124138]
[1763358909292,0.01,3192.0,3191.7,3.15124138]
[1763358909593,0.01,3192.0,3191.7,3.65113651]
[1763358909793,0.01,3192.0,3191.9,0.008]
[1763358910904,0.01,3192.0,3191.9,6.31848276]
[1763358911091,0.01,3192.0,3191.9,6.81037789]
[1763358911817,0.01,3192.0,3191.9,3.65913651]
[1763358912182,0.01,3192.0,3191.9,6.81037789]
[1763358913616,0.01,3192.0,3191.9,3.65913651]
[1763358914811,0.01,3192.0,3191.9,6.81037789]
[1763358918023,0.01,3192.0,3191.9,8.34962269]
[1763358928022,0.01,3192.0,3191.9,1.63363593]
[1763358928222,0.01,3192.0,3191.9,7.93611869]
[1763358930627,0.01,3192.0,3191.9,4.78487731]
[1763358931415,0.01,3192.0,3191.9,7.93611869]
[1763358933021,0.01,3192.0,3191.9,4.77687731]
[1763358934836,0.01,3192.0,3191.9,4.77354511]
[1763358935510,0.01,3192.0,3191.9,4.77454511]
[1763358937246,0.01,3192.0,3191.9,4.78254511]
[1763358937457,0.01,3192.0,3191.9,4.29064998]
[1763358937621,0.01,3192.0,3191.9,4.29864998]
[1763358938016,0.01,3192.0,3191.9,4.29064998]
[1763358938741,0.01,3192.0,3191.9,4.28264998]
[1763358941456,0.01,3192.0,3191.9,4.29064998]
[1763358949078,0.4624,3192.0,3191.9,4.28264998]
[1763358949750,0.01,3192.0,3191.9,4.28264998]
[1763358950279,0.01,3192.0,3191.9,4.29064998]
[1763358950858,0.01,3192.0,3191.9,4.70415398]
[1763358951359,0.01,3192.0,3191.9,4.82971015]
[1763358951764,0.01,3192.0,3191.9,4.82171015]
[1763358952782,0.01,3192.0,3191.9,4.82971015]
[1763358953157,0.002,3192.1,3192.0,0.405504]
[1763358953362,0.002,3192.1,3192.0,0.421504]
[1763358958970,0.002,3192.1,3192.0,3.56141318]
[1763358960256,0.002,3192.1,3192.0,3.56941318]
[1763358960958,0.002,3192.1,3192.0,3.69495398]
[1763358961656,0.002,3192.8,3192.4,0.058]
[1763358961856,0.002,3193.7,3192.9,0.008]
[1763358962087,0.002,3193.7,3193.3,3.14790918]
[1763358962088,0.4994,3193.7,3193.3,3.14790918]
[1763358962284,0.4994,3193.4,3193.3,3.14790918]
[1763358962460,0.9906,3193.4,3193.3,3.14790918]
[1763358967657,0.002,3193.4,3193.3,3.14790918]
[1763358968198,0.002,3193.4,3193.3,3.15590918]
[1763358968615,0.4932,3193.4,3193.3,3.14790918]
[1763358968906,0.002,3193.4,3193.3,3.14790918]
[1763358969068,0.002,3193.4,3193.3,4.28164998]
[1763358970078,0.4932,3193.4,3193.3,4.28164998]
[1763358970838,0.9906,3193.4,3193.3,3.14790918]
[1763358972425,0.9906,3193.4,3193.0,0.001]
[1763358972712,0.4912,3193.1,3193.0,0.001]
[1763358973150,0.9886,3193.1,3193.0,0.001]
[1763358976563,0.73424795,3193.1,3193.0,0.001]
[1763358980437,0.4608,3193.1,3193.0,0.001]
[1763358980640,0.4958,3193.4,3193.0,0.001]
[1763358980962,0.002,3193.4,3193.3,3.14790918]
[1763358981258,0.002,3193.4,3193.3,3.41020918]
[1763358982353,0.002,3193.4,3193.3,3.14790918]
[1763358985370,0.002,3193.4,3193.3,4.54394998]
[1763358985561,0.002,3193.4,3193.3,4.80624998]
[1763358986572,0.002,3193.4,3193.3,5.21175398]
[1763358987075,0.002,3193.4,3193.3,4.94945398]
[1763358989476,0.002,3193.4,3193.3,4.68715398]
[1763358992158,0.002,3193.4,3193.3,4.94945398]
[1763358992747,0.002,3193.4,3193.3,4.68715398]
[1763358993972,0.9584,3193.4,3193.3,1.1337408]
[1763358994173,0.9584,3193.4,3193.3,4.28164998]
[1763358994568,0.9584,3193.4,3193.3,1.1337408]
[1763358994919,0.9584,3193.4,3193.3,4.2792338]
[1763358996183,0.002,3193.4,3193.3,4.2792338]
[1763358996710,0.4956,3193.4,3193.3,4.2792338]
[1763358996908,0.002,3193.4,3193.3,4.5415338]
[1763358997109,0.002,3193.4,3193.3,4.2792338]
[1763358998108,0.002,3193.4,3193.3,4.5415338]
[1763358998311,0.4956,3193.4,3193.3,4.2792338]
[1763358998520,0.9584,3193.4,3193.3,4.2792338]
[1763358999180,0.4956,3193.4,3193.3,4.2792338]
[1763359001301,0.002,3193.4,3193.3,4.2792338]
[1763359002314,0.4956,3193.4,3193.3,4.2792338]
[1763359003931,0.002,3193.4,3193.3,4.2792338]
[1763359005539,0.9584,3193.4,3193.3,1.1337408]
[1763359006227,0.9584,3193.4,3193.2,6.290986]
[1763359006440,0.4936,3193.3,3193.2,4.2792338]
[1763359006801,0.4936,3193.3,3193.2,7.4247268]
[1763359011220,0.9564,3193.3,3193.2,7.4247268]
[1763359012453,0.964,3193.3,3193.2,1.1337408]
[1763359012627,0.964,3193.3,3193.0,0.001]
[1763359012961,0.4526,3193.1,3193.0,0.001]
[1763359013118,0.4526,3193.1,3193.0,3.146493]
[1763359013322,0.923,3193.1,3193.0,3.146493]
[1763359015152,0.923,3193.1,3193.0,0.001]
[1763359015320,0.923,3193.1,3193.0,3.146493]
[1763359015521,0.4526,3193.1,3193.0,0.001]
[1763359015722,0.923,3193.1,3193.0,3.146493]
[1763359021773,0.002,3193.4,3193.0,6.554286]
[1763359021986,0.002,3193.4,3193.3,3.145493]
[1763359022626,0.4546,3193.4,3193.3,3.145493]
[1763359023224,0.002,3193.4,3193.3,3.145493]
[1763359023427,0.005,3194.9,3193.8,0.2623]
[1763359023678,0.005,3194.9,3194.8,6.95879]
[1763359023981,0.005,3194.9,3194.8,8.0925308]
[1763359024323,0.005,3194.9,3194.8,8.93906484]
[1763359026730,0.005,3194.9,3194.8,9.20136484]
[1763359028424,0.005,3194.9,3194.8,8.93906484]
[1763359028947,0.005,3194.9,3194.8,9.20136484]
[1763359029564,0.1907,3195.9,3194.8,9.20136484]
[1763359029565,0.005,3195.9,3194.9,0.405504]
[1763359029772,0.005,3195.9,3195.8,3.145493]
[1763359030177,0.4576,3195.9,3195.8,3.145493]
[1763359030542,0.928,3195.9,3195.8,3.145493]
[1763359031446,0.928,3195.9,3194.9,0.667804]
[1763359031643,0.005,3195.9,3195.4,0.928]
[1763359031889,0.005,3195.9,3195.8,0.2623]
[1763359032068,0.005,3195.9,3195.6,0.405504]
[1763359032597,0.005,3195.9,3195.7,0.4704]
[1763359032896,0.005,3195.9,3195.8,4.2792338]
[1763359033950,0.005,3195.9,3195.8,4.7496338]
[1763359034491,0.4576,3195.9,3195.8,5.36318019]
[1763359036784,0.005,3195.9,3195.8,5.36318019]
[1763359038803,0.005,3195.9,3194.4,0.05]
[1763359038804,1.1475,3195.9,3194.4,0.05]
[1763359039084,0.9532,3195.8,3195.7,3.145493]
[1763359039653,0.4882,3195.8,3195.7,3.145493]
[1763359040389,0.9532,3195.8,3195.7,3.145493]
[1763359045289,0.9642,3195.8,3195.6,6.290986]
[1763359045487,0.9484,3195.7,3195.6,6.290986]
[1763359050708,0.9484,3195.7,3195.6,3.145493]
[1763359050873,0.9484,3195.7,3195.6,6.290986]
[1763359051402,0.9484,3195.7,3195.2,0.63690019]
[1763359051590,0.4724,3195.7,3195.6,6.290986]
[1763359052202,0.9484,3195.7,3195.6,6.290986]
[1763359055177,0.4724,3195.7,3195.6,6.290986]
[1763359056721,0.9484,3195.7,3195.6,6.290986]
[1763359056895,0.9484,3195.7,3195.6,3.14048528]
[1763359060444,0.9504,3195.7,3195.6,3.14048528]
[1763359068744,1.24433293,3195.7,3194.9,0.001]
[1763359068946,0.4724,3195.0,3194.9,0.001]
[1763359069646,0.9484,3195.0,3194.9,0.001]
[1763359069953,0.4724,3195.0,3194.9,0.001]
[1763359070904,0.476,3195.2,3194.9,0.001]
[1763359071030,0.476,3195.2,3195.1,3.14048528]
[1763359071547,0.9587,3195.2,3195.1,3.14048528]
[1763359073541,0.4827,3195.2,3195.1,3.14048528]
[1763359073724,0.9585,3195.2,3195.1,3.14048528]
[1763359076585,0.4827,3195.2,3195.1,3.14048528]
[1763359077589,0.002,3195.7,3195.1,3.66508528]
[1763359077760,0.002,3195.7,3195.6,3.14048528]
[1763359079700,0.4847,3195.7,3194.9,0.001]
[1763359080003,0.4778,3195.7,3195.5,3.14048528]
[1763359080207,0.4847,3195.6,3195.5,3.14048528]
[1763359080560,0.9605,3195.6,3195.5,3.14048528]
[1763359085073,0.9605,3195.6,3195.2,3.14048528]
[1763359085274,0.4827,3195.3,3195.2,3.14048528]
[1763359085460,0.4758,3195.5,3195.2,3.14048528]
[1763359086768,0.4827,3195.3,3195.2,3.14048528]
[1763359088565,0.9585,3195.3,3195.2,3.14048528]
[1763359090936,0.9585,3195.3,3194.9,0.001]
[1763359091141,0.4758,3195.2,3195.1,3.14048528]
[1763359091320,0.9585,3195.2,3195.1,3.14048528]
[1763359091888,0.9585,3195.2,3194.9,0.001]
[1763359092241,0.4827,3195.0,3194.9,0.001]
[1763359092592,0.9585,3195.0,3194.9,0.001]
[1763359093406,0.4827,3195.0,3194.9,0.001]
[1763359093926,0.9585,3195.0,3194.9,0.001]
[1763359095104,0.002,3195.6,3194.9,0.5256]
[1763359095303,0.4778,3195.6,3195.5,3.14048528]
[1763359095631,0.4778,3195.6,3195.3,3.14048528]
[1763359095925,0.4827,3195.4,3194.9,3.14148528]
[1763359096126,0.4778,3195.6,3194.9,3.14148528]
[1763359096430,0.4758,3195.5,3195.1,3.14048528]
[1763359096624,0.4758,3195.5,3195.2,3.14048528]
[1763359097037,0.4632,3195.3,3195.2,3.14048528]
[1763359097540,0.9479,3195.3,3195.2,3.14048528]
[1763359100140,0.9479,3195.3,3194.9,3.14148528]
[1763359100431,0.4632,3195.0,3194.9,0.001]
[1763359100930,0.9479,3195.0,3194.9,0.001]
[1763359104642,0.4632,3195.0,3194.9,0.001]
[1763359104824,0.922,3195.0,3194.9,0.001]
[1763359105824,0.4588,3195.2,3194.9,0.001]
[1763359106039,0.4864,3195.0,3194.9,0.001]
[1763359106537,0.9452,3195.0,3194.9,0.001]
[1763359108347,1.23877172,3195.0,3194.9,0.001]
[1763359110810,1.7900715,3195.0,3194.9,0.001]
[1763359111741,6.06429758,3195.0,3194.9,0.001]
[1763359112313,2.9238123,3195.0,3194.9,0.001]
[1763359114251,2.9258123,3195.0,3194.9,0.001]
[1763359116620,6.06629758,3195.0,3194.9,0.001]
[1763359116828,6.07050589,3195.0,3194.9,0.001]
[1763359118757,5.77693417,3195.0,3194.9,0.001]
[1763359119065,6.06995067,3195.0,3194.9,0.001]
[1763359120267,1.33271628,3195.0,3194.9,0.001]
[1763359120458,1.2402165,3195.0,3194.9,0.001]
[1763359132845,5.92415489,3195.0,3194.9,0.001]
[1763359133016,6.60020267,3195.0,3194.9,0.001]
[1763359140452,3.45550908,3195.0,3194.9,0.001]
[1763359141580,6.60020267,3195.0,3194.9,0.001]
[1763359141749,7.65836876,3195.0,3194.9,0.001]
[1763359142068,8.78451874,3195.0,3194.9,0.001]
[1763359143275,0.405504,3194.9,3194.5,0.001]
[1763359143441,3.73949359,3194.6,3194.5,0.001]
[1763359143643,4.70855787,3194.6,3194.5,0.001]
[1763359143984,2.11928147,3194.6,3194.5,0.001]
[1763359144128,1.52448147,3194.6,3194.5,0.2633]
[1763359144332,0.2930165,3194.6,3194.5,0.001]
[1763359144755,0.2930165,3194.6,3194.5,0.2633]
[1763359145069,0.2930165,3194.6,3194.5,0.5256]
[1763359145234,0.2930165,3194.6,3194.5,0.2633]
[1763359145955,0.2930165,3194.6,3194.5,0.5256]
[1763359148272,0.2930165,3194.6,3194.5,0.2633]
[1763359148678,0.2930165,3194.6,3194.5,3.67029359]
[1763359149056,0.2930165,3194.9,3194.5,3.67029359]
[1763359149257,0.2930165,3194.8,3194.6,0.2623]
[1763359149462,0.2930165,3194.7,3194.6,0.2623]
[1763359149789,0.2930165,3194.9,3194.6,0.2623]
[1763359149977,0.2930165,3194.8,3194.6,0.2623]
[1763359150186,0.002,3195.0,3194.9,0.2623]
[1763359150501,0.29543614,3195.0,3194.9,0.2623]
[1763359153460,0.29543614,3195.0,3194.9,0.5246]
[1763359153870,0.78233614,3195.0,3194.5,0.001]
[1763359154073,0.4869,3194.6,3194.5,0.001]
[1763359154382,3.92497863,3194.6,3194.5,0.001]
[1763359154582,4.79387649,3194.6,3194.5,0.001]
[1763359155398,6.33312129,3194.6,3194.5,0.001]
[1763359155602,7.00926615,3194.6,3194.5,0.001]
[1763359156792,1.5392448,3194.5,3192.6,4.27943439]
[1763359156991,1.5392448,3194.5,3193.1,3.14469359]
[1763359156992,3.63879359,3194.3,3193.1,3.14469359]
[1763359157192,0.29338504,3194.2,3193.1,3.14469359]
[1763359157391,0.29338504,3194.1,3193.1,3.14469359]
[1763359157592,0.29338504,3194.0,3193.1,3.14469359]
[1763359157911,0.29338504,3193.9,3193.1,3.14469359]
[1763359158115,0.1949,3193.9,3193.1,3.14469359]
[1763359158474,0.48828504,3193.9,3192.9,3.14469359]
[1763359158680,0.29338504,3193.8,3192.9,3.14469359]
[1763359159106,0.77858504,3193.8,3192.9,3.14469359]
[1763359159301,0.4852,3193.8,3192.9,3.14469359]
[1763359160709,0.33881726,3194.4,3193.5,3.14469359]
[1763359161017,0.29328554,3194.3,3193.3,3.14469359]
[1763359161228,0.29328554,3194.2,3193.3,3.14469359]
[1763359161436,0.29328554,3194.1,3193.3,3.14469359]
[1763359161636,0.29328554,3194.0,3193.3,3.14469359]
[1763359161832,0.29328554,3194.1,3193.3,3.14469359]
[1763359162129,0.29328554,3194.0,3193.3,3.14469359]
[1763359162335,0.29328554,3194.1,3193.3,3.14469359]
[1763359162535,0.29328554,3194.0,3193.3,3.14469359]
[1763359162712,0.29328554,3194.1,3193.3,3.14469359]
[1763359162912,0.29328554,3194.0,3193.3,3.14469359]
[1763359163116,0.29328554,3194.1,3193.3,3.14469359]
[1763359163316,0.29328554,3194.0,3193.3,3.14469359]
[1763359163509,0.29328554,3194.1,3193.3,3.14469359]
[1763359163715,0.29328554,3194.0,3193.3,3.14469359]
[1763359163916,0.29328554,3194.1,3193.3,3.14469359]
[1763359164102,0.29328554,3194.0,3193.3,3.14469359]
[1763359164298,0.29328554,3194.1,3193.3,3.14469359]
[1763359164515,0.29328554,3194.0,3193.5,3.14469359]
[1763359164739,0.29328554,3194.1,3193.5,3.14469359]
[1763359164965,0.29328554,3194.0,3193.3,3.14469359]
[1763359165142,0.29328554,3194.1,3193.3,3.14469359]
[1763359165309,0.29328554,3194.0,3193.3,3.14469359]
[1763359165643,0.29328554,3194.1,3193.3,3.14469359]
[1763359165938,0.29328554,3194.0,3193.3,3.14469359]
[1763359166140,0.29328554,3194.1,3193.3,3.14469359]
[1763359166435,0.29328554,3194.0,3193.3,3.14469359]
[1763359166642,0.4604,3194.2,3193.3,3.14469359]
[1763359166643,0.29328554,3194.1,3193.3,3.14469359]
[1763359166806,0.29328554,3194.0,3193.3,3.14469359]
[1763359167133,0.29328554,3194.1,3193.3,3.14469359]
[1763359167308,0.4604,3194.2,3193.3,3.14469359]
[1763359167309,0.29328554,3194.0,3193.3,3.14469359]
[1763359167509,0.29328554,3194.1,3193.3,3.14469359]
[1763359167809,0.29328554,3194.0,3193.3,3.14469359]
[1763359168140,0.29328554,3194.1,3193.3,3.14469359]
[1763359168927,0.75368554,3194.1,3193.3,3.14469359]
[1763359169122,0.29328554,3194.0,3193.3,3.14469359]
[1763359171560,0.29328554,3194.1,3193.5,3.14469359]
[1763359172048,0.29328554,3194.1,3193.3,3.14469359]
[1763359172559,0.29328554,3194.1,3193.3,2.14469359]
[1763359172862,0.29328554,3194.1,3193.5,3.14469359]
[1763359174651,0.29528554,3194.2,3193.7,3.14469359]
[1763359174862,0.002,3194.2,3193.7,3.14469359]
[1763359176159,0.29528554,3194.2,3193.7,3.14469359]
[1763359176368,0.002,3194.2,3193.7,3.14469359]
[1763359176865,0.29528554,3194.2,3193.7,3.14469359]
[1763359177169,0.002,3194.2,3193.7,3.14469359]
[1763359177568,0.29528554,3194.2,3193.7,3.14469359]
[1763359177769,0.002,3194.2,3193.7,3.14469359]
[1763359178162,0.6741,3193.8,3192.4,0.35726725]
[1763359178377,0.6741,3193.8,3191.9,0.001]
[1763359178378,6.77258718,3192.5,3191.9,0.001]
[1763359178541,8.31183198,3192.0,3191.9,0.001]
[1763359178733,3.83732381,3192.0,3191.9,0.001]
[1763359178939,6.60291744,3192.0,3191.9,0.001]
[1763359179170,6.19741344,3192.0,3191.9,0.001]
[1763359179358,6.22568459,3192.0,3191.9,0.001]
[1763359179671,6.90041278,3192.0,3191.9,0.001]
[1763359180250,7.30591678,3192.0,3191.9,0.001]
[1763359180839,8.44116878,3192.0,3191.9,0.001]
[1763359181897,3.7496051,3192.0,3191.9,0.001]
[1763359182174,3.07487691,3192.0,3191.9,0.001]
[1763359182374,2.37057416,3192.0,3191.9,0.001]
[1763359182950,1.91017416,3192.0,3191.9,0.001]
[1763359183167,2.37057416,3192.0,3191.9,0.001]
[1763359183364,2.0773408,3192.0,3191.9,0.001]
[1763359188141,1.6169408,3192.0,3191.9,0.001]
[1763359188341,1.82782855,3192.0,3191.9,0.001]